bitfinex/quotes_SOLUSD_20220302
["timestamp","ask_amount","ask_price","bid_price","bid_amount"]
[1646257106551,50.9840448,100.13,100.04,159.18]
[1646257106751,9.052,100.14,100.04,173.81]
[1646257106950,9.052,100.14,100.05,125.34364003]
[1646257107152,9.052,100.14,100.05,139.97364003]
[1646257107651,56.50725558,100.13,100.05,139.97364003]
[1646257107850,51.51225558,100.13,100.05,40.24364003]
[1646257108050,51.51225558,100.13,100.06,14.9904]
[1646257108250,51.51225558,100.13,100.06,15.2404]
[1646257108451,56.50725558,100.13,100.06,15.2404]
[1646257108654,51.76225558,100.13,100.06,15.2404]
[1646257108852,56.75725558,100.13,100.06,15.2404]
[1646257113956,5.245,100.13,100.06,15.2404]
[1646257114258,0.25,100.13,100.06,15.2404]
[1646257114559,14.047,100.14,100.06,29.6204]
[1646257114756,9.052,100.14,100.06,29.6204]
[1646257114958,55.81468641,100.14,100.06,29.6204]
[1646257115857,9.052,100.14,100.06,191.34944003]
[1646257116059,9.052,100.14,100.06,196.34944003]
[1646257116659,9.052,100.14,100.06,202.92405277]
[1646257116865,9.052,100.14,100.06,246.60730049]
[1646257117057,9.052,100.14,100.06,241.60730049]
[1646257117263,9.052,100.14,100.09,59.45]
[1646257117461,9.052,100.14,100.09,74.6864]
[1646257117660,9.052,100.14,100.09,15.2364]
[1646257120965,9.052,100.14,100.09,29.6164]
[1646257122771,9.052,100.14,100.09,0.25]
[1646257122972,9.302,100.14,100.07,39.3326]
[1646257123372,9.302,100.14,100.07,39.0826]
[1646257124476,9.302,100.14,100.07,53.4626]
[1646257126073,9.302,100.14,100.07,53.7126]
[1646257126290,0.25,100.14,100.07,53.7126]
[1646257126491,6.0,100.15,100.07,53.7126]
[1646257126693,4.994,100.14,100.07,53.7126]
[1646257126893,5.244,100.14,100.07,53.7126]
[1646257128695,0.25,100.14,100.07,53.7126]
[1646257128890,5.244,100.15,100.08,59.45]
[1646257129091,0.25,100.15,100.08,74.08]
[1646257129290,45.1192,100.16,100.08,29.6177]
[1646257129696,45.1192,100.16,100.09,23.0619]
[1646257129991,45.1192,100.16,100.09,23.3119]
[1646257132397,20.991,100.15,100.09,23.3119]
[1646257132597,21.241,100.15,100.09,23.3119]
[1646257133496,15.241,100.15,100.09,23.3119]
[1646257136604,0.25,100.15,100.09,23.3119]
[1646257136806,30.13,100.16,100.09,23.3119]
[1646257139706,25.136,100.16,100.09,23.3119]
[1646257143107,30.129,100.16,100.09,23.3119]
[1646257143308,45.1184,100.16,100.09,23.3119]
[1646257144211,6.0,100.15,100.09,23.0619]
[1646257144411,21.2407,100.15,100.09,23.0619]
[1646257145512,51.16182373,100.13,100.09,23.3119]
[1646257162560,4.994,100.14,100.09,23.3119]
[1646257162759,5.244,100.14,100.09,23.3119]
[1646257163560,57.51547134,100.14,100.09,23.3119]
[1646257168370,57.26547134,100.14,100.09,23.3119]
[1646257169072,52.27147134,100.14,100.09,23.3119]
[1646257170671,52.27147134,100.14,100.09,23.0619]
[1646257170874,52.52147134,100.14,100.09,23.0619]
[1646257172095,52.52147134,100.14,100.09,23.3119]
[1646257172695,57.51547134,100.14,100.09,23.3119]
[1646257180506,57.51547134,100.14,100.09,22.8119]
[1646257186715,6.0,100.13,100.09,22.8119]
[1646257189418,6.0,100.13,100.09,0.25]
[1646257189619,30.7832,100.13,100.06,49.746]
[1646257189820,4.995,100.12,100.06,49.496]
[1646257190022,51.51873369,100.1,100.03,15.43324295]
[1646257190322,76.30193369,100.1,100.01,69.10488385]
[1646257190522,76.30193369,100.1,100.01,76.65392388]
[1646257190723,76.30193369,100.1,100.02,13.71792185]
[1646257190924,76.30193369,100.1,100.03,22.6985]
[1646257191120,91.30073369,100.1,100.03,22.6985]
[1646257191320,76.30193369,100.1,100.03,22.9485]
[1646257192922,4.995,100.12,100.03,22.9485]
[1646257193121,28.195,100.12,100.03,40.49374003]
[1646257193321,23.2,100.12,100.03,40.49374003]
[1646257193922,6.0,100.11,100.04,59.93]
[1646257194123,4.996,100.12,100.05,14.993]
[1646257194325,23.2731,100.15,100.05,42.46774003]
[1646257194524,23.5231,100.15,100.06,2.54904003]
[1646257194823,23.5231,100.15,100.06,2.79904003]
[1646257195224,49.95355095,100.14,100.06,2.79904003]
[1646257195425,50.20355095,100.14,100.06,2.79904003]
[1646257196126,50.20355095,100.14,100.06,17.78984003]
[1646257196323,50.20355095,100.14,100.07,23.0147]
[1646257196524,50.20355095,100.14,100.07,23.2647]
[1646257197528,4.994,100.13,100.07,23.2647]
[1646257199226,4.994,100.13,100.07,38.2547]
[1646257199427,0.25,100.14,100.07,38.2547]
[1646257199626,6.0,100.14,100.07,38.2547]
[1646257199827,6.25,100.14,100.07,38.2547]
[1646257200032,60.54523034,100.14,100.07,38.2547]
[1646257201632,60.54523034,100.14,100.08,4.994]
[1646257201830,60.54523034,100.14,100.08,5.244]
[1646257202433,60.54523034,100.14,100.08,0.25]
[1646257203034,60.54523034,100.14,100.07,43.2487]
[1646257203234,65.53923034,100.14,100.07,43.2487]
[1646257204040,59.53923034,100.14,100.07,43.2487]
[1646257206160,59.53923034,100.14,100.07,142.9787]
[1646257206355,54.54523034,100.14,100.07,145.52774003]
[1646257206557,54.54523034,100.14,100.07,159.90774003]
[1646257207461,54.54523034,100.14,100.07,60.17774003]
[1646257210864,54.54523034,100.14,100.07,74.92064003]
[1646257212767,0.25,100.14,100.07,74.92064003]
[1646257212967,6.0,100.15,100.07,74.92064003]
[1646257213166,6.25,100.15,100.07,74.92064003]
[1646257213565,56.7097922,100.15,100.07,74.92064003]
[1646257214769,56.7097922,100.15,100.07,79.92064003]
[1646257216167,56.7097922,100.15,100.07,179.65064003]
[1646257217572,56.7097922,100.15,100.07,79.92064003]
[1646257217871,50.7097922,100.15,100.07,79.92064003]
[1646257218070,50.7097922,100.15,100.07,74.92064003]
[1646257218670,50.7097922,100.15,100.07,60.17774003]
[1646257218870,6.0,100.14,100.07,38.2547]
[1646257219071,11.244,100.14,100.07,38.2547]
[1646257219672,34.7497,100.14,100.07,38.2547]
[1646257223474,28.7497,100.14,100.07,38.2547]
[1646257224776,28.7497,100.14,100.08,4.994]
[1646257224975,28.7497,100.14,100.08,5.244]
[1646257225379,28.7497,100.14,100.08,0.25]
[1646257226076,28.7497,100.14,100.07,38.2547]
[1646257230582,23.7557,100.14,100.08,4.994]
[1646257230781,23.5057,100.14,100.08,5.244]
[1646257230986,4.994,100.16,100.08,179.8928]
[1646257231181,29.2749,100.17,100.08,196.82184003]
[1646257231384,4.993,100.19,100.08,196.82184003]
[1646257231582,4.993,100.19,100.1,159.66]
[1646257231785,49.59206673,100.2,100.12,159.66]
[1646257231984,49.59206673,100.2,100.13,104.722]
[1646257232181,142.293,100.21,100.13,107.52104003]
[1646257232384,142.293,100.21,100.13,131.74154003]
[1646257233284,192.94500703,100.21,100.13,32.01154003]
[1646257233483,192.94500703,100.21,100.13,46.99244003]
[1646257233884,80.04500703,100.21,100.13,46.99244003]
[1646257234687,80.29500703,100.21,100.13,61.37244003]
[1646257236892,29.643,100.21,100.13,161.10244003]
[1646257237691,89.11971846,100.21,100.13,161.10244003]
[1646257238911,64.71871846,100.21,100.14,159.66]
[1646257239111,59.72671846,100.21,100.14,162.45904003]
[1646257239410,59.72671846,100.21,100.14,62.72904003]
[1646257239612,59.72671846,100.21,100.14,2.79904003]
[1646257240612,59.72671846,100.21,100.14,62.72904003]
[1646257242413,64.71771846,100.21,100.14,62.72904003]
[1646257246022,59.72671846,100.21,100.14,62.72904003]
[1646257247922,59.72671846,100.21,100.14,67.72904003]
[1646257249527,59.72671846,100.21,100.14,167.45904003]
[1646257250424,59.72671846,100.21,100.14,7.79904003]
[1646257251025,59.72671846,100.21,100.13,29.2125]
[1646257251026,95.73562746,100.21,100.13,29.2125]
[1646257251225,4.991,100.2,100.13,29.2125]
[1646257251424,5.241,100.2,100.13,29.2125]
[1646257251724,26.31497872,100.2,100.1,26.43334003]
[1646257252024,6.0,100.19,100.1,50.26474003]
[1646257252227,6.25,100.19,100.1,50.26474003]
[1646257252423,29.483,100.19,100.1,50.51474003]
[1646257252823,44.468,100.19,100.1,47.9657]
[1646257253627,4.992,100.18,100.1,52.9577]
[1646257253826,69.26610104,100.17,100.1,52.7077]
[1646257254126,69.51610104,100.17,100.1,52.7077]
[1646257254328,69.51610104,100.17,100.1,47.7157]
[1646257257233,6.0,100.16,100.1,47.7157]
[1646257257531,15.2391,100.16,100.1,47.7157]
[1646257261536,20.2321,100.16,100.1,47.7157]
[1646257261735,15.2391,100.16,100.1,47.7157]
[1646257261934,4.993,100.15,100.1,47.7157]
[1646257262137,5.243,100.15,100.08,7.54204003]
[1646257262336,5.243,100.15,100.08,32.68304003]
[1646257263136,20.2336,100.15,100.08,32.68304003]
[1646257268440,15.2406,100.15,100.08,32.68304003]
[1646257277056,15.2406,100.15,100.08,132.41304003]
[1646257277255,15.2406,100.15,100.08,32.68304003]
[1646257277457,15.2406,100.15,100.08,132.41304003]
[1646257277857,0.25,100.15,100.09,174.04]
[1646257278055,74.48376237,100.17,100.11,59.93]
[1646257278056,54.27790104,100.17,100.11,59.93]
[1646257278257,6.0,100.16,100.11,60.18]
[1646257278456,6.0,100.16,100.11,62.72904003]
[1646257279357,6.25,100.16,100.11,62.72904003]
[1646257279760,6.0,100.16,100.11,0.25]
[1646257279975,6.0,100.16,100.1,53.3221]
[1646257280373,6.0,100.16,100.1,55.87114003]
[1646257280775,6.0,100.16,100.1,115.80114003]
[1646257281874,6.25,100.16,100.1,55.87114003]
[1646257282073,6.25,100.16,100.1,38.3373]
[1646257288779,11.243,100.16,100.1,38.3373]
[1646257289980,11.243,100.16,100.1,23.9573]
[1646257293885,6.25,100.16,100.1,23.9573]
[1646257294984,0.25,100.16,100.1,23.9573]
[1646257295184,99.17410104,100.17,100.1,23.9573]
[1646257296487,6.0,100.16,100.1,23.9573]
[1646257296685,6.25,100.16,100.1,23.9573]
[1646257317510,6.25,100.16,100.1,23.7073]
[1646257320914,21.2392,100.16,100.1,23.7073]
[1646257325143,4.993,100.15,100.1,23.7073]
[1646257325343,6.0,100.14,100.1,23.7073]
[1646257325541,6.25,100.14,100.1,23.7073]
[1646257326942,49.78114446,100.13,100.1,23.7073]
[1646257327142,50.03114446,100.13,100.1,23.7073]
[1646257327343,50.03114446,100.13,100.08,52.4718]
[1646257327542,50.03114446,100.13,100.08,47.4788]
[1646257328344,6.0,100.12,100.08,47.4788]
[1646257328545,6.25,100.12,100.08,47.4788]
[1646257329544,0.25,100.12,100.08,47.4788]
[1646257329744,50.03114446,100.13,100.08,47.4788]
[1646257330145,6.0,100.12,100.08,47.4788]
[1646257330348,6.25,100.12,100.08,47.4788]
[1646257330547,49.78114446,100.13,100.08,47.4788]
[1646257331047,6.0,100.12,100.08,47.4788]
[1646257331247,49.78114446,100.13,100.08,47.4788]
[1646257331848,6.0,100.12,100.08,47.4788]
[1646257332047,6.25,100.12,100.08,47.4788]
[1646257333048,0.25,100.12,100.08,47.4788]
[1646257333248,50.03114446,100.13,100.08,47.4788]
[1646257333750,6.0,100.12,100.08,47.4788]
[1646257333950,6.25,100.12,100.08,47.4788]
[1646257334950,0.25,100.12,100.08,47.4788]
[1646257335251,50.03114446,100.13,100.08,47.4788]
[1646257335453,6.0,100.12,100.08,47.4788]
[1646257335652,6.25,100.12,100.08,47.4788]
[1646257336555,0.25,100.12,100.08,47.4788]
[1646257336752,50.03114446,100.13,100.08,47.4788]
[1646257337052,6.0,100.12,100.08,47.4788]
[1646257337254,6.25,100.12,100.08,47.4788]
[1646257337556,4.994,100.14,100.08,47.7288]
[1646257337752,6.0,100.13,100.08,47.7288]
[1646257338153,4.994,100.14,100.08,47.7288]
[1646257338352,28.8296,100.15,100.08,162.4475]
[1646257338552,6.0,100.14,100.08,179.37654003]
[1646257339954,6.0,100.14,100.08,79.64654003]
[1646257344562,6.0,100.14,100.08,77.0975]
[1646257345561,6.0,100.14,100.09,159.66]
[1646257345763,6.0,100.15,100.09,191.82634003]
[1646257345963,6.25,100.15,100.1,127.00584003]
[1646257346164,6.0,100.14,100.1,141.63584003]
[1646257346474,0.25,100.15,100.1,141.63584003]
[1646257347063,6.25,100.16,100.1,141.63584003]
[1646257351869,0.25,100.16,100.1,141.63584003]
[1646257352072,5.244,100.17,100.1,141.63584003]
[1646257356477,0.25,100.17,100.1,156.62134003]
[1646257356680,100.81949304,100.18,100.1,156.62134003]
[1646257357679,100.56949304,100.18,100.1,156.62134003]
[1646257359087,100.81949304,100.18,100.1,156.62134003]
[1646257360789,100.81949304,100.18,100.11,162.20904003]
[1646257360991,80.83919304,100.18,100.12,124.3329]
[1646257361189,80.83919304,100.18,100.12,124.5829]
[1646257361392,80.83919304,100.18,100.12,24.8529]
[1646257363506,95.82529304,100.18,100.12,24.8529]
[1646257364702,100.81729304,100.18,100.12,24.8529]
[1646257373511,122.35498297,100.18,100.12,24.8529]
[1646257376613,100.81729304,100.18,100.12,24.8529]
[1646257384736,22.5763,100.18,100.12,124.5829]
[1646257384939,4.992,100.21,100.13,174.04]
[1646257385143,22.7339,100.21,100.13,174.29]
[1646257385647,22.7339,100.21,100.14,23.4509]
[1646257385945,49.71833154,100.2,100.14,23.7009]
[1646257387146,54.70933154,100.2,100.14,38.0809]
[1646257388960,54.70933154,100.2,100.14,37.8309]
[1646257389156,54.95933154,100.2,100.14,37.8309]
[1646257389755,49.96833154,100.2,100.14,37.8309]
[1646257390155,49.91833154,100.2,100.14,37.8309]
[1646257390360,49.91833154,100.2,100.14,38.0809]
[1646257390756,49.91833154,100.2,100.14,23.7009]
[1646257390956,20.85785704,100.3,100.17,100.0]
[1646257391162,72.25518058,100.35,100.22,10.0]
[1646257391360,177.54426654,100.34,100.22,29.13879405]
[1646257391556,4.986,100.32,100.24,5.0]
[1646257391757,4.986,100.34,100.24,14.63]
[1646257391957,153.11642051,100.33,100.22,44.43134462]
[1646257392157,104.716,100.32,100.22,14.50879405]
[1646257392358,4.986,100.32,100.22,14.50879405]
[1646257392558,26.29965049,100.32,100.22,14.50879405]
[1646257392961,50.25419589,100.31,100.22,14.50879405]
[1646257393157,49.61192523,100.29,100.22,14.50879405]
[1646257393358,45.44058274,100.27,100.22,14.50879405]
[1646257393559,45.69058274,100.27,100.22,14.50879405]
[1646257393959,45.69058274,100.27,100.22,19.74579405]
[1646257394162,45.44058274,100.27,100.22,19.74579405]
[1646257395963,45.44058274,100.27,100.22,14.75879405]
[1646257396163,45.44058274,100.27,100.22,19.49579405]
[1646257396563,45.69058274,100.27,100.22,19.49579405]
[1646257397164,45.69058274,100.27,100.22,4.50879405]
[1646257397664,45.69058274,100.27,100.22,0.25]
[1646257397866,45.69058274,100.27,100.21,5.237]
[1646257399665,45.69058274,100.27,100.21,0.25]
[1646257399867,45.69058274,100.27,100.2,34.5886]
[1646257402068,45.69058274,100.27,100.2,4.988]
[1646257402269,4.988,100.26,100.18,67.9707]
[1646257402468,5.238,100.26,100.18,67.9707]
[1646257402969,45.28162424,100.25,100.18,67.9707]
[1646257403173,45.53162424,100.25,100.18,67.9707]
[1646257403369,45.53162424,100.25,100.18,68.2207]
[1646257404468,45.53162424,100.25,100.18,82.6007]
[1646257408074,59.12446754,100.23,100.18,82.6007]
[1646257412979,112.9,100.27,100.19,159.66]
[1646257413181,47.0265,100.32,100.21,159.66]
[1646257413379,47.0265,100.32,100.23,14.9661]
[1646257413578,47.0265,100.32,100.24,14.38]
[1646257413780,4.986,100.31,100.24,14.63]
[1646257413984,54.68676837,100.3,100.24,14.63]
[1646257414181,4.986,100.29,100.24,14.63]
[1646257414383,49.23147774,100.28,100.24,14.63]
[1646257415687,49.23147774,100.28,100.24,29.5946]
[1646257421807,49.23147774,100.28,100.24,189.2546]
[1646257422205,49.23147774,100.28,100.24,191.80364003]
[1646257422619,49.23147774,100.28,100.24,206.20394145]
[1646257423021,49.23147774,100.28,100.24,191.80364003]
[1646257423522,49.23147774,100.28,100.24,216.75624787]
[1646257424524,49.23147774,100.28,100.24,231.74724787]
[1646257427031,49.23147774,100.28,100.25,164.647]
[1646257427232,49.23147774,100.28,100.26,14.38]
[1646257427430,5.0,100.36,100.3,159.66]
[1646257427631,46.9528,100.4,100.3,174.29]
[1646257427830,46.9528,100.4,100.31,24.8944]
[1646257428030,46.9528,100.4,100.31,225.49274228]
[1646257428430,43.71378309,100.39,100.32,44.34409842]
[1646257428633,43.96378309,100.39,100.33,29.3311]
[1646257428833,43.96378309,100.39,100.33,29.5811]
[1646257429833,4.982,100.38,100.33,29.5811]
[1646257430334,48.19109828,100.37,100.33,29.5811]
[1646257431033,48.19109828,100.37,100.34,14.9499]
[1646257431235,48.19109828,100.37,100.35,0.26322325]
[1646257431937,48.19109828,100.37,100.35,5.24522325]
[1646257432134,48.19109828,100.37,100.35,5.49522325]
[1646257432332,48.19109828,100.37,100.35,20.44362325]
[1646257433134,48.19109828,100.37,100.35,15.46162325]
[1646257436738,48.19109828,100.37,100.35,20.44362325]
[1646257436940,48.19109828,100.37,100.35,15.46162325]
[1646257440541,48.19109828,100.37,100.35,0.26322325]
[1646257443866,48.19109828,100.37,100.31,60.87354228]
[1646257444269,48.19109828,100.37,100.31,60.62354228]
[1646257444468,48.44109828,100.37,100.31,60.62354228]
[1646257444674,48.44109828,100.37,100.31,34.3152]
[1646257445674,48.44109828,100.37,100.31,34.5652]
[1646257449475,48.44109828,100.37,100.31,36.67962768]
[1646257450878,48.19109828,100.37,100.31,96.60962768]
[1646257451076,48.19109828,100.37,100.33,44.43139219]
[1646257451278,48.19109828,100.37,100.33,49.66339219]
[1646257452480,48.19109828,100.37,100.33,64.61459219]
[1646257452679,46.7616,100.4,100.33,123.97339219]
[1646257452879,46.7616,100.4,100.33,223.70339219]
[1646257453683,48.87471389,100.39,100.33,223.70339219]
[1646257454084,48.87471389,100.39,100.34,14.9497]
[1646257454282,48.87471389,100.39,100.34,15.1997]
[1646257456784,48.87471389,100.39,100.34,0.25]
[1646257456984,49.12471389,100.39,100.33,19.612]
[1646257460588,54.10671389,100.39,100.33,19.612]
[1646257464193,54.10671389,100.39,100.33,19.362]
[1646257464392,0.16936492,100.38,100.28,16.92904003]
[1646257464592,32.56553159,100.38,100.28,16.92904003]
[1646257464794,32.81553159,100.38,100.28,16.92904003]
[1646257464996,0.26702162,100.36,100.28,14.38]
[1646257465193,0.26702162,100.34,100.26,2.54904003]
[1646257465393,44.81480342,100.32,100.25,53.48346122]
[1646257465693,45.06480342,100.32,100.25,53.48346122]
[1646257465893,45.06480342,100.32,100.25,48.48346122]
[1646257466494,45.06480342,100.32,100.25,63.44656122]
[1646257466695,45.06480342,100.32,100.25,78.07656122]
[1646257471907,45.06480342,100.32,100.26,14.9617]
[1646257472109,45.06480342,100.32,100.26,15.2117]
[1646257472808,4.985,100.34,100.27,165.62165741]
[1646257473009,22.8948,100.35,100.27,180.25165741]
[1646257473207,22.8948,100.35,100.27,182.80069744]
[1646257473814,69.42023884,100.35,100.27,232.65189744]
[1646257474009,69.42023884,100.35,100.27,253.27944618]
[1646257474209,46.52543884,100.35,100.3,48.48346122]
[1646257474410,46.52543884,100.35,100.3,63.11346122]
[1646257474609,46.52543884,100.35,100.3,65.66250125]
[1646257475035,47.2104,100.4,100.3,65.66250125]
[1646257475246,47.4604,100.4,100.3,65.66250125]
[1646257476036,48.1662904,100.39,100.31,14.953]
[1646257476235,48.4162904,100.39,100.31,29.583]
[1646257476636,48.4162904,100.39,100.32,5.96165741]
[1646257476837,48.4162904,100.39,100.32,6.21165741]
[1646257477741,48.4162904,100.39,100.32,0.25]
[1646257477938,48.4162904,100.39,100.31,29.333]
[1646257477939,4.982,100.38,100.31,29.583]
[1646257478140,5.232,100.38,100.31,29.583]
[1646257478542,5.232,100.38,100.32,14.9529]
[1646257478742,43.73859097,100.37,100.32,62.79045394]
[1646257482143,43.73859097,100.37,100.33,4.982]
[1646257482345,43.73859097,100.37,100.33,5.232]
[1646257482544,43.73859097,100.37,100.33,0.25]
[1646257483545,43.73859097,100.37,100.32,5.232]
[1646257485450,43.73859097,100.37,100.32,0.25]
[1646257485649,43.73859097,100.37,100.31,78.36900471]
[1646257486450,48.72159097,100.37,100.31,73.38700471]
[1646257489454,48.72159097,100.37,100.31,78.37000471]
[1646257490257,0.25,100.38,100.31,78.37000471]
[1646257490460,47.2104,100.4,100.33,59.93]
[1646257490657,47.2104,100.4,100.33,74.56]
[1646257490956,47.2104,100.4,100.33,34.34959561]
[1646257491158,47.2104,100.4,100.33,39.33059561]
[1646257491358,49.81592846,100.39,100.34,10.64241392]
[1646257491560,49.81592846,100.39,100.34,25.27241392]
[1646257492059,49.81592846,100.39,100.35,14.9485]
[1646257492258,49.81592846,100.39,100.35,15.1985]
[1646257492458,49.81592846,100.39,100.35,0.25]
[1646257493560,49.81592846,100.39,100.34,25.27241392]
[1646257496383,47.2104,100.4,100.34,40.22221392]
[1646257496581,47.2104,100.4,100.34,85.20241392]
[1646257497383,95.42644896,100.4,100.34,85.20241392]
[1646257497583,95.42644896,100.4,100.34,25.27241392]
[1646257497985,95.42644896,100.4,100.35,14.9483]
[1646257498186,95.42644896,100.4,100.36,43.80270471]
[1646257498385,95.42644896,100.4,100.36,44.05270471]
[1646257499985,95.42644896,100.4,100.36,0.25]
[1646257500185,95.42644896,100.4,100.35,29.5783]
[1646257500888,95.42644896,100.4,100.35,14.63]
[1646257501285,95.42644896,100.4,100.35,0.25]
[1646257501488,95.42644896,100.4,100.34,53.1702043]
[1646257502487,95.42644896,100.4,100.34,82.5001043]
[1646257509299,4.981,100.42,100.35,14.9484]
[1646257509498,4.98,100.45,100.36,74.31]
[1646257509798,6.0,100.44,100.37,23.926]
[1646257509996,6.0,100.44,100.37,38.556]
[1646257510200,47.46051659,100.43,100.38,1.52491433]
[1646257510398,47.46051659,100.43,100.38,16.71861433]
[1646257511600,47.46051659,100.43,100.38,76.64861433]
[1646257511800,47.46051659,100.43,100.38,91.02861433]
[1646257512406,6.0,100.44,100.38,91.02861433]
[1646257512602,6.0,100.45,100.38,93.57765436]
[1646257513402,65.94160587,100.45,100.38,93.57765436]
[1646257513603,65.94160587,100.45,100.38,193.30765436]
[1646257514705,59.94160587,100.45,100.38,193.30765436]
[1646257515906,59.94160587,100.45,100.38,198.30765436]
[1646257517210,59.94160587,100.45,100.38,98.57765436]
[1646257517607,59.94160587,100.45,100.38,93.57765436]
[1646257517808,59.94160587,100.45,100.38,33.64765436]
[1646257518012,59.94160587,100.45,100.38,48.21215436]
[1646257518610,59.94160587,100.45,100.38,53.21215436]
[1646257520632,59.94160587,100.45,100.38,132.86174997]
[1646257524836,23.8866,100.49,100.38,254.77929871]
[1646257525045,23.8866,100.49,100.4,159.66]
[1646257525238,23.8866,100.49,100.42,14.9375]
[1646257525436,23.8866,100.49,100.42,29.5675]
[1646257525938,23.8866,100.49,100.43,48.27047522]
[1646257526138,23.9841,100.5,100.43,122.83047522]
[1646257526338,4.977,100.53,100.44,2.54904003]
[1646257526541,29.0363,100.52,100.46,14.9314]
[1646257526740,4.977,100.53,100.46,29.5614]
[1646257526939,155.73126297,100.54,100.47,6.17464341]
[1646257527141,155.73126297,100.54,100.47,20.80464341]
[1646257527340,42.83126297,100.54,100.47,83.28368344]
[1646257528242,42.83126297,100.54,100.49,42.94144478]
[1646257528442,42.83126297,100.54,100.49,57.57144478]
[1646257529243,42.83126297,100.54,100.49,14.63]
[1646257529442,42.83126297,100.54,100.49,29.5575]
[1646257529642,42.83126297,100.54,100.49,14.63]
[1646257542956,42.83126297,100.54,100.49,29.5576]
[1646257546156,42.83126297,100.54,100.5,11.31604262]
[1646257546355,42.83126297,100.54,100.5,11.56604262]
[1646257548059,206.1895,100.6,100.51,178.68464354]
[1646257548060,5.0,100.6,100.51,178.68464354]
[1646257548261,313.49427711,100.7,100.51,178.68464354]
[1646257548262,112.9,100.7,100.58,70.31891037]
[1646257548462,47.2059,100.69,100.59,19.57354447]
[1646257548661,4.968,100.68,100.59,44.50831427]
[1646257549060,57.8859898,100.67,100.6,14.9113]
[1646257549260,4.968,100.66,100.61,14.38]
[1646257549459,4.968,100.66,100.61,14.63]
[1646257550069,34.01889157,100.65,100.61,14.63]
[1646257550666,4.968,100.69,100.62,59.93]
[1646257550864,22.7537,100.73,100.63,14.38]
[1646257551066,6.0,100.72,100.63,14.63]
[1646257551564,59.80004646,100.71,100.63,25.94222239]
[1646257551767,59.80004646,100.71,100.63,188.15126242]
[1646257551966,59.80004646,100.71,100.63,77.10904003]
[1646257552164,6.0,100.7,100.64,14.9053]
[1646257552365,6.0,100.7,100.65,14.38]
[1646257552665,6.0,100.7,100.65,14.63]
[1646257552865,6.0,100.7,100.66,4.966]
[1646257553068,32.10483491,100.69,100.66,5.216]
[1646257553267,47.18645579,100.67,100.66,5.216]
[1646257553665,47.18645579,100.67,100.66,5.32334825]
[1646257553886,6.0,100.7,100.66,5.32334825]
[1646257554186,22.7537,100.73,100.66,5.32334825]
[1646257554385,222.2988,100.75,100.66,19.70334825]
[1646257554985,51.19129199,100.74,100.66,34.60564825]
[1646257555185,50.19129199,100.74,100.66,34.60564825]
[1646257555389,105.73,100.73,100.66,19.45334825]
[1646257555587,4.965,100.72,100.66,0.10734825]
[1646257555787,6.0,100.71,100.63,5.215]
[1646257555985,218.88,100.71,100.63,4.965]
[1646257556287,14.9127,100.69,100.61,14.38]
[1646257556485,55.87628938,100.69,100.62,4.966]
[1646257556888,40.96358938,100.69,100.62,19.346]
[1646257557887,40.96358938,100.69,100.62,71.2462306]
[1646257558089,40.71358938,100.69,100.62,71.4962306]
[1646257558288,40.96358938,100.69,100.62,71.4962306]
[1646257558486,40.96358938,100.69,100.62,19.596]
[1646257559688,55.87508938,100.69,100.62,19.596]
[1646257560988,155.60508938,100.69,100.62,19.346]
[1646257561189,155.60508938,100.69,100.57,5.0]
[1646257561190,6.0,100.68,100.57,5.0]
[1646257561405,5.5,100.68,100.58,7.51704003]
[1646257561593,5.5,100.68,100.58,21.89704003]
[1646257561594,0.27046606,100.68,100.58,21.89704003]
[1646257561796,4.968,100.67,100.58,21.89704003]
[1646257561998,45.8791424,100.66,100.59,67.95641237]
[1646257562198,45.8791424,100.66,100.6,19.348]
[1646257562396,45.8791424,100.66,100.61,2.40110626]